bitfinex/quotes_ETHUSD_20241212
["timestamp","ask_amount","ask_price","bid_price","bid_amount"]
[1733972457429,0.38415816,3867.8,3867.7,0.55]
[1733972457973,0.38432581,3867.8,3867.1,1.32149381]
[1733972458274,3.3673,3868.2,3867.1,1.32149381]
[1733972458275,0.38432581,3867.7,3867.2,0.68214938]
[1733972458611,2.58534,3868.0,3867.2,0.68214938]
[1733972458913,0.38451478,3867.9,3867.2,0.68214938]
[1733972459212,2.58552,3867.7,3867.2,0.68214938]
[1733972459422,2.58552,3867.7,3867.2,0.55]
[1733972459423,0.38451478,3867.6,3867.2,0.55]
[1733972459645,0.38451478,3867.5,3867.2,0.55]
[1733972459935,3.36706,3868.6,3867.2,0.55]
[1733972459936,2.97024478,3867.4,3867.2,0.55]
[1733972460144,0.62503092,3867.3,3867.2,0.55]
[1733972460978,0.62503092,3867.3,3864.8,0.1655488]
[1733972460979,2.586,3867.0,3866.1,0.8093]
[1733972461178,0.62503092,3866.9,3866.2,0.02586187]
[1733972461481,0.2407481,3866.8,3866.3,1.29321]
[1733972461721,2.58552,3867.7,3866.4,1.503431]
[1733972461936,0.62594466,3867.6,3866.4,0.210251]
[1733972462240,0.2407499,3867.5,3866.8,0.8093]
[1733972462554,0.62604379,3867.4,3866.9,0.55]
[1733972462683,0.2407499,3867.3,3866.9,0.55]
[1733972462883,0.24082672,3867.2,3867.1,0.55]
[1733972463387,6.28493809,3869.8,3867.1,0.57585677]
[1733972463388,2.58475,3868.9,3867.1,0.57585677]
[1733972463594,2.58411,3869.8,3867.1,0.55]
[1733972463595,0.7701,3868.7,3867.1,0.55]
[1733972463890,0.7701,3868.4,3866.3,0.8093]
[1733972464091,2.58591,3867.2,3866.3,0.8093]
[1733972464408,0.6265712,3867.1,3866.3,2.10252]
[1733972464641,0.24092113,3867.0,3866.3,0.8093]
[1733972464803,2.58518,3868.2,3866.3,0.8093]
[1733972464804,0.24092113,3866.9,3866.3,2.10252]
[1733972465136,0.24092113,3866.8,3866.4,1.503422]
[1733972465335,3.0,3868.3,3866.4,1.503422]
[1733972465336,0.24092113,3866.7,3866.4,0.210252]
[1733972465485,2.58549,3867.8,3866.4,0.55]
[1733972465690,3.21274219,3867.7,3866.4,0.55]
[1733972465918,3.21285219,3867.6,3866.4,0.55]
[1733972466129,0.62721219,3867.5,3866.4,0.55]
[1733972466348,0.62721219,3867.4,3866.4,0.55]
[1733972466505,0.62721219,3867.4,3866.3,0.8093]
[1733972466506,2.58586,3867.2,3866.3,0.8093]
[1733972466711,2.58607,3866.9,3865.8,0.8093]
[1733972466914,0.62721219,3866.8,3865.8,1.35197281]
[1733972467224,0.62721219,3866.7,3865.8,1.35197281]
[1733972467418,0.62721219,3866.6,3865.8,1.35197281]
[1733972467622,2.82755546,3866.5,3865.8,0.8093]
[1733972467860,0.62722345,3866.4,3865.8,0.8093]
[1733972468058,0.62722345,3866.4,3864.8,0.1655488]
[1733972468059,3.21367914,3866.3,3864.9,2.11786]
[1733972468209,0.62722914,3866.2,3865.2,1.29358]
[1733972468569,0.7701,3867.3,3865.1,3.45173348]
[1733972468570,0.24123546,3866.1,3865.3,0.85006774]
[1733972468709,2.58619,3866.7,3865.4,0.43018012]
[1733972469051,0.62675558,3866.6,3865.4,0.43018012]
[1733972469261,2.58619,3866.7,3865.5,0.55]
[1733972469459,0.38567653,3866.5,3865.5,0.55]
[1733972469638,0.24104783,3866.4,3865.5,1.84348]
[1733972469841,2.97167346,3866.8,3865.7,0.55]
[1733972470044,0.24095048,3866.7,3865.7,0.55]
[1733972470354,0.7701,3867.3,3865.7,0.55]
[1733972470355,2.58607,3866.9,3865.7,0.55]
[1733972470561,0.62643679,3866.8,3865.7,0.55]
[1733972470703,0.24093729,3866.7,3865.8,1.29339]
[1733972470909,2.58607,3866.9,3865.9,0.54797006]
[1733972471104,0.24094044,3866.8,3866.0,0.55]
[1733972471359,2.58599,3867.0,3866.0,0.55]
[1733972471516,0.24088402,3866.9,3866.0,0.55]
[1733972471720,0.7701,3867.3,3866.0,0.55]
[1733972471926,0.62630913,3867.2,3866.2,0.55]
[1733972472124,0.24088086,3867.1,3866.4,0.55]
[1733972472453,2.58562,3867.6,3866.4,0.55]
[1733972472651,3.21188004,3867.5,3866.4,0.55]
[1733972472871,0.24085001,3867.4,3866.4,0.55]
[1733972473022,0.24085001,3867.3,3866.1,0.8242]
[1733972473227,0.8148,3867.9,3866.2,0.55]
[1733972473447,2.58579,3867.3,3866.2,0.55]
[1733972473808,2.58579,3867.3,3865.6,3.32393809]
[1733972473809,2.58602,3867.0,3865.6,1.29345]
[1733972473967,0.24085655,3866.9,3865.4,0.8242]
[1733972474119,0.8148,3867.2,3865.6,3.32393809]
[1733972474320,0.24093868,3867.1,3865.8,0.8242]
[1733972474662,2.58575,3867.4,3866.0,1.2933]
[1733972474815,0.24093502,3867.3,3865.9,0.55]
[1733972475159,0.24093502,3867.2,3866.2,1.29325]
[1733972475455,2.58566,3867.5,3866.3,0.55]
[1733972475619,0.24094461,3867.4,3866.3,0.55]
[1733972475820,0.24094461,3867.3,3866.3,0.734325]
[1733972476020,0.24094461,3867.2,3866.3,0.734325]
[1733972476255,0.24094461,3867.1,3866.3,0.734325]
[1733972476418,2.58572,3867.4,3866.3,0.734325]
[1733972476755,0.24100534,3867.3,3866.1,0.55]
[1733972476963,0.8148,3867.1,3865.8,0.8242]
[1733972477147,2.82700534,3867.0,3865.8,0.8242]
[1733972477320,2.58626,3866.6,3865.6,2.92536701]
[1733972477536,0.24109127,3866.5,3865.6,2.92536701]
[1733972477731,3.40073,3867.1,3865.6,2.92536701]
[1733972477732,0.24109127,3866.4,3865.6,2.92536701]
[1733972478020,0.24109127,3866.4,3865.1,0.8242]
[1733972478021,0.24109482,3866.3,3865.1,3.74956701]
[1733972478230,2.58646,3866.3,3865.1,3.74956701]
[1733972478645,0.24111139,3866.2,3865.1,3.74956701]
[1733972478853,0.8148,3867.1,3865.1,3.74956701]
[1733972478854,0.24111139,3866.1,3865.1,3.74956701]
[1733972479057,2.58659,3866.1,3865.1,3.74956701]
[1733972479286,2.58674,3865.9,3865.1,3.74956701]
[1733972479418,3.40111,3866.6,3865.1,3.74956701]
[1733972479624,2.58646,3866.3,3865.1,3.74956701]
[1733972479831,0.24106234,3866.2,3865.1,3.74956701]
[1733972480136,0.8148,3866.6,3865.1,3.74956701]
[1733972480137,0.38569975,3866.5,3865.1,2.92536701]
[1733972480335,0.8148,3866.6,3865.1,2.92536701]
[1733972480336,0.24097987,3866.4,3865.1,3.23445859]
[1733972480539,3.40073,3867.1,3865.7,0.8242]
[1733972480736,0.24094232,3867.0,3865.7,0.8242]
[1733972480935,3.40073,3867.1,3865.7,0.8242]
[1733972481161,0.24094623,3867.0,3865.1,3.23445859]
[1733972481372,0.62664598,3866.9,3865.1,3.74956701]
[1733972481566,2.58623,3866.7,3865.2,1.31944176]
[1733972481871,0.24094623,3866.6,3865.2,1.29357]
[1733972482078,0.24094623,3866.5,3865.5,2.92536701]
[1733972482279,2.58632,3866.5,3865.2,1.29358]
[1733972482478,0.38569975,3867.0,3865.1,0.8242]
[1733972482479,2.58631,3866.6,3865.1,0.8242]
[1733972482648,0.38569975,3866.9,3865.1,0.8242]
[1733972482649,0.3855863,3866.9,3865.8,0.55]
[1733972482848,0.24097605,3866.8,3865.8,0.55]
[1733972483061,2.58608,3866.9,3865.6,0.55]
[1733972483248,0.8148,3867.1,3865.6,0.55]
[1733972483458,0.24098993,3867.0,3865.8,0.55]
[1733972483658,0.24098993,3866.9,3865.8,0.55]
[1733972483976,0.24098993,3866.8,3865.6,0.55]
[1733972484140,0.24098993,3866.7,3865.6,0.55]
[1733972484456,0.24098993,3866.7,3865.1,0.8242]
[1733972484457,0.24098993,3866.6,3865.1,0.8242]
[1733972484790,2.58655,3866.2,3865.1,0.8242]
[1733972484989,0.24098993,3866.1,3865.1,0.8242]
[1733972485225,0.24110428,3866.0,3865.1,0.8242]
[1733972485374,2.58655,3866.2,3865.1,0.8242]
[1733972485576,0.24105721,3866.1,3865.1,0.8242]
[1733972485816,2.58655,3866.2,3865.1,0.8242]
[1733972485999,0.24105602,3866.1,3865.1,0.8242]
[1733972486202,0.24105602,3866.0,3865.1,0.8242]
[1733972486532,0.24105602,3865.9,3865.1,0.8242]
[1733972486728,2.58661,3866.1,3865.1,0.8242]
[1733972487021,2.82779908,3866.0,3865.1,0.8242]
[1733972487223,2.82788908,3865.9,3865.1,0.8242]
[1733972487541,0.3971887,3865.9,3864.8,0.1655488]
[1733972487820,0.7582,3866.1,3864.8,0.1655488]
[1733972487821,2.58692,3865.6,3864.8,0.1655488]
[1733972488025,2.58665,3866.0,3864.8,0.1655488]
[1733972488172,2.92536701,3866.5,3864.8,0.1655488]
[1733972488173,2.58735,3865.0,3864.8,0.1655488]
[1733972488373,2.58653,3866.2,3864.8,0.1655488]
[1733972488374,0.7582,3865.1,3864.8,0.1655488]
[1733972488675,0.24122364,3865.0,3864.8,0.1655488]
[1733972488878,2.58736,3865.0,3864.8,0.1655488]
[1733972489185,2.921916,3865.0,3864.8,0.1655488]
[1733972489608,0.7582,3865.1,3864.8,0.1655488]
[1733972489815,3.34546,3865.1,3864.8,0.1655488]
[1733972490014,2.82826402,3865.0,3864.8,0.1655488]
[1733972490226,2.58732,3865.0,3864.8,0.1655488]
[1733972491027,0.38551101,3865.4,3864.8,0.1655488]
[1733972491237,3.34508,3865.7,3864.8,0.1655488]
[1733972491532,0.24075735,3865.6,3864.8,0.1655488]
[1733972491670,0.24075735,3865.5,3864.8,0.1655488]
[1733972492016,0.7582,3865.7,3864.8,0.1655488]
[1733972492219,0.99893655,3865.7,3864.8,0.1655488]
[1733972492390,2.58665,3866.0,3864.9,0.8237]
[1733972492800,2.58665,3866.0,3864.9,1.02612088]
[1733972493499,3.34473,3866.2,3864.9,1.02612088]
[1733972493735,0.24079344,3866.1,3864.9,1.02612088]
[1733972493941,2.58659,3866.1,3864.9,1.02612088]
[1733972494106,0.24080666,3866.0,3864.9,1.02612088]
[1733972494319,0.7582,3866.2,3864.9,0.8237]
[1733972494626,0.7582,3866.2,3864.8,0.1655488]
[1733972494627,2.58701,3865.5,3864.8,0.1655488]
[1733972494833,2.58693,3865.6,3864.8,0.1655488]
[1733972495142,0.38537137,3866.0,3864.8,0.1655488]
[1733972495345,0.24085929,3865.9,3864.8,0.1655488]
[1733972495547,0.56214771,3865.8,3864.8,0.1655488]
[1733972495852,2.58738,3864.9,3864.8,0.1655488]
[1733972496439,2.82821895,3864.9,3864.8,0.1655488]
[1733972499367,0.24083895,3864.9,3864.8,0.1655488]
[1733972499561,0.24083895,3865.5,3864.8,0.1655488]
[1733972499766,2.58727,3865.1,3864.8,0.1655488]
[1733972499999,2.58731,3865.1,3864.8,0.1655488]
[1733972500241,2.58707,3865.4,3864.8,0.1655488]
[1733972500372,2.58698,3865.5,3864.8,0.1655488]
[1733972501016,2.5867,3866.0,3864.8,0.1655488]
[1733972501017,0.8211,3866.0,3864.8,0.1655488]
[1733972501232,0.24048441,3866.5,3865.3,2.92536701]
[1733972501370,2.69029924,3866.8,3866.3,2.92536701]
[1733972501565,2.69029924,3866.8,3866.7,0.55]
[1733972502486,2.69029924,3866.8,3866.5,0.55]
[1733972502970,2.69029924,3866.8,3866.6,1.03448]
[1733972503168,2.69029924,3866.8,3866.7,0.55]
[1733972503399,2.69029924,3866.8,3866.5,0.55]
[1733972503582,2.69029924,3866.8,3866.7,0.55]
[1733972504236,0.98784424,3866.8,3866.7,1.3081]
[1733972505123,0.98473312,3866.8,3866.7,1.3081]
[1733972505308,2.48021726,3867.5,3867.3,1.03431]
[1733972505470,3.22791295,3867.9,3867.6,0.7581]
[1733972505824,0.5372136,3868.3,3868.2,7.34217]
[1733972506130,3.96072602,3868.6,3868.5,2.34209]
[1733972506433,2.68963232,3869.7,3868.5,2.34209]
[1733972506434,5.50103921,3868.7,3868.6,2.55]
[1733972506624,5.19978967,3869.1,3869.0,3.03385]
[1733972506916,1.65138016,3869.1,3869.0,12.52133559]
[1733972507070,2.68963232,3869.7,3869.2,0.5]
[1733972507271,2.68963232,3869.7,3869.2,6.37470796]
[1733972507486,2.68963232,3869.7,3869.2,13.29265456]
[1733972507728,3.90432998,3869.8,3869.7,1.03367]
[1733972507912,3.90432998,3869.8,3869.7,15.01312525]
[1733972508110,3.90432998,3869.8,3869.7,13.53113575]
[1733972508419,3.89755024,3870.4,3870.3,1.03351]
[1733972508627,4.44735858,3872.4,3871.1,3.03327]
[1733972508771,4.44735858,3872.4,3871.8,2.92536701]
[1733972508975,4.44735858,3872.4,3872.2,3.10735802]
[1733972509183,4.44735858,3872.4,3872.3,3.86218895]
[1733972510077,4.44735858,3872.4,3872.3,5.93037127]
[1733972510274,4.44735858,3872.4,3872.3,3.86218895]
[1733972510899,4.44735858,3872.4,3872.3,6.9630163]
[1733972511103,2.58206,3872.9,3872.3,6.9630163]
[1733972511418,0.258206,3872.8,3872.7,2.06211215]
[1733972511656,0.258206,3872.8,3872.7,3.86218895]
[1733972512164,0.8211,3873.7,3872.7,3.86218895]
[1733972512481,0.8211,3874.6,3873.6,2.057935]
[1733972512620,0.8211,3874.6,3874.4,2.05727586]
[1733972512922,0.8211,3874.6,3874.5,5.91824347]
[1733972513126,0.8211,3874.6,3874.5,8.47621042]
[1733972513321,1.286294,3874.6,3874.5,5.90291517]
[1733972513637,2.58044,3875.3,3874.3,0.99087928]
[1733972513638,3.33040856,3875.0,3874.3,0.99087928]
[1733972513836,3.33040856,3875.0,3874.1,1.02656432]
[1733972513837,2.58117,3874.2,3874.1,1.02656432]
[1733972514250,0.5,3874.9,3873.3,1.02656432]
[1733972514581,2.58164,3873.5,3873.3,1.02656432]
[1733972514754,0.258164,3873.4,3872.3,2.56566515]
[1733972514954,2.58215,3872.8,3872.2,2.56566515]
[1733972515141,2.58215,3872.8,3871.9,2.56566515]
[1733972515339,1.34014404,3873.3,3871.9,2.56566515]
[1733972515581,0.258164,3873.4,3871.9,2.56566515]
[1733972516085,0.25,3874.5,3872.5,2.56566515]
[1733972516223,2.58187,3873.2,3872.3,2.56566515]
[1733972516419,2.58207,3872.9,3872.2,2.56566515]
[1733972516840,2.58239,3872.4,3871.8,2.56566515]
[1733972517071,0.8211,3873.2,3871.8,2.56566515]
[1733972517377,3.33040856,3872.9,3871.8,2.56566515]
[1733972517573,3.33040856,3872.9,3871.6,0.7581]
[1733972517574,0.59124286,3872.8,3871.7,2.56566515]
[1733972517717,0.59124286,3872.8,3871.6,0.7581]
[1733972517924,2.58237,3872.5,3871.6,0.7581]
[1733972518531,3.17338286,3872.8,3871.6,0.7581]
[1733972518737,2.58221,3872.7,3871.6,0.7581]
[1733972518952,2.58279,3871.8,3871.4,2.54590429]
[1733972519202,3.40371,3872.1,3871.4,2.54590429]
[1733972519463,0.8211,3872.1,3871.4,2.54590429]
[1733972519771,2.58294,3871.6,3871.4,2.54590429]
[1733972520082,5.62739031,3871.9,3871.4,2.54590429]
[1733972520223,0.64484903,3871.8,3871.4,2.54590429]
[1733972520687,0.8211,3872.1,3871.4,2.54590429]
[1733972520821,2.58234,3872.5,3871.4,2.54590429]
[1733972521179,1.47148614,3872.6,3871.4,2.54590429]
[1733972521325,3.403,3873.2,3871.3,0.7581]
[1733972521525,2.5822,3872.7,3871.3,3.32376515]
[1733972521723,2.5822,3872.7,3871.3,0.7581]
[1733972521977,2.5822,3872.7,3871.3,2.82957417]
[1733972522123,3.33040856,3873.1,3871.4,2.04564763]
[1733972522324,3.33040856,3873.1,3871.3,0.7581]
[1733972522325,0.41515086,3873.0,3871.3,0.7581]
[1733972522741,2.99714086,3873.0,3871.5,1.53351847]
[1733972522996,2.99714086,3873.0,3871.5,3.22422049]
[1733972523122,2.58206,3872.9,3871.4,1.53351847]
[1733972523453,0.41515086,3873.0,3871.3,2.29161847]
[1733972523623,3.33040856,3873.1,3871.3,2.29161847]
[1733972523624,2.58218,3872.7,3871.4,1.26717673]
[1733972523832,0.45666594,3872.9,3871.5,1.26717673]
[1733972523833,2.58235,3872.5,3871.5,1.26717673]
[1733972524169,2.58273,3871.9,3870.8,2.29161847]
[1733972524323,2.58257,3872.1,3870.8,0.7581]
[1733972524826,2.58257,3872.1,3870.9,1.26759593]
[1733972525066,0.340367,3872.0,3870.8,0.7581]
[1733972525435,2.923027,3872.0,3870.8,0.7581]
[1733972525643,2.5020794,3872.5,3870.8,0.7581]
[1733972525844,3.33040856,3872.1,3870.8,0.7581]
[1733972526027,2.58307,3871.4,3870.5,1.033391]
[1733972526369,2.58311,3871.3,3870.4,0.7581]
[1733972526527,1.67611161,3871.6,3870.4,0.7581]
[1733972526764,3.33040856,3872.1,3870.4,0.7581]
[1733972527077,3.33040856,3871.6,3870.4,0.7581]
[1733972527280,2.58322,3871.2,3870.4,0.7581]
[1733972527469,0.33304086,3871.5,3870.4,0.7581]
[1733972527664,2.58315,3871.3,3870.4,0.7581]
[1733972527860,2.58325,3871.1,3870.4,0.7581]
[1733972528062,2.58307,3871.4,3870.4,0.7581]
[1733972528380,2.58327,3871.1,3870.4,0.7581]
[1733972528590,2.58359,3870.6,3869.9,0.8046]
[1733972528993,0.7677,3871.0,3869.9,0.8046]
[1733972530069,2.58359,3870.6,3869.9,0.8046]
[1733972530307,2.58372,3870.4,3869.9,0.8046]
[1733972530550,2.58383,3870.3,3869.6,1.022007]
[1733972530706,0.258372,3870.4,3869.1,0.8046]
[1733972531037,3.33040856,3869.9,3868.2,0.8046]
[1733972531188,2.58432,3869.5,3868.5,1.033952]
[1733972531394,3.33040856,3869.9,3868.2,0.8046]
[1733972531646,2.58472,3868.9,3868.2,0.8046]
[1733972531863,3.33040856,3869.9,3868.2,0.8046]
[1733972532132,0.59143286,3869.8,3868.2,0.9884552]
[1733972532349,2.58445,3869.3,3868.2,0.9884552]
[1733972533357,2.58439,3869.4,3868.2,0.9884552]
[1733972533646,0.59143286,3869.8,3868.2,0.8046]
[1733972533845,0.59143286,3869.8,3867.6,0.8046]
[1733972533846,0.7677,3869.0,3867.6,0.8046]
[1733972534136,2.58515,3868.3,3867.6,0.8046]
[1733972534510,0.7677,3869.0,3867.6,0.8046]
[1733972534839,1.52065553,3869.3,3867.6,0.8046]
[1733972535135,5.91479856,3869.4,3866.0,2.04564763]
[1733972535136,2.58527,3868.1,3867.1,1.83895]
[1733972535505,0.33223515,3869.2,3867.1,1.83895]
[1733972535817,2.58525,3868.1,3867.1,1.83895]
[1733972536023,0.23922142,3869.1,3867.1,0.8046]
[1733972536024,2.58546,3867.8,3867.1,0.8046]
[1733972536227,2.58526,3868.1,3867.1,0.8046]
[1733972537095,2.58485,3868.7,3867.1,0.8046]
[1733972537301,2.58529,3868.1,3867.1,0.8046]
[1733972537895,2.5842,3869.7,3867.1,0.02585858]
[1733972538102,0.7677,3869.7,3867.9,0.8046]
[1733972538622,0.23867061,3870.3,3867.9,1.83873]
[1733972538623,3.35169,3870.0,3867.9,1.83873]
[1733972538860,3.71072606,3870.0,3868.0,0.183873]
[1733972539075,1.123829,3870.0,3868.0,0.183873]
[1733972539241,2.58459,3869.1,3867.9,0.8046]
[1733972539590,3.33040856,3869.9,3867.9,0.8046]
[1733972539874,2.5847,3869.0,3867.9,0.8046]
[1733972540051,2.58472,3868.9,3867.9,0.8046]
[1733972540774,2.58451,3869.2,3867.9,0.8046]
[1733972540939,2.58472,3868.9,3867.9,0.8046]
[1733972541285,2.58472,3868.9,3867.4,0.8153]
[1733972541628,2.58438,3869.4,3867.4,0.8153]
[1733972541826,2.5847,3869.0,3867.4,0.8153]
[1733972542041,2.58494,3868.6,3867.4,0.8153]
[1733972542671,2.58545,3867.8,3867.0,1.818334]
[1733972542971,0.7619,3868.1,3867.0,0.7839]
[1733972543144,2.58567,3867.5,3866.0,0.7839]
[1733972543342,2.58567,3867.5,3866.3,1.03458]
[1733972543731,0.7619,3868.1,3866.3,1.03458]
[1733972543945,2.58552,3867.7,3866.3,1.03458]
[1733972544883,1.096601,3868.1,3866.0,0.7839]
[1733972544884,2.5857,3867.5,3866.0,0.7839]
[1733972545053,2.58531,3868.0,3866.0,1.818556]
[1733972545054,4.00630604,3868.0,3866.0,1.818556]
[1733972545236,4.00630604,3868.0,3866.0,0.7839]
[1733972545442,2.58587,3867.2,3866.0,0.7839]
[1733972545655,4.00630604,3868.0,3866.0,0.7839]
[1733972545950,0.7479206,3867.9,3866.0,0.9657648]
[1733972546225,2.58592,3867.1,3866.0,0.9657648]
[1733972546473,0.9864344,3867.9,3866.0,0.9657648]
[1733972546474,2.58601,3867.0,3866.0,0.9657648]
[1733972546784,2.92925301,3867.5,3865.7,1.034748]
[1733972546927,2.92925301,3867.5,3865.4,0.7839]
[1733972546928,2.58644,3866.4,3865.4,0.7839]
[1733972547562,2.58645,3866.3,3865.4,0.7839]
[1733972547873,6.59162604,3868.0,3865.8,1.29337]
[1733972548200,2.58566,3867.5,3865.9,0.7839]
[1733972548364,6.59162604,3868.0,3865.9,0.7839]
[1733972548365,2.58579,3867.3,3866.0,0.207727]
[1733972548556,2.58579,3867.3,3865.9,0.7839]
[1733972548928,2.58587,3867.2,3865.9,0.7839]
[1733972549129,2.58569,3867.5,3865.9,0.7839]
[1733972549347,6.59165604,3868.0,3865.9,0.7839]
[1733972549568,2.58573,3867.4,3865.9,0.7839]
[1733972549892,6.59165604,3868.0,3865.9,0.7839]
[1733972549893,0.7619,3867.8,3866.0,0.207731]
[1733972550267,2.58569,3867.5,3865.9,0.7839]
[1733972550616,2.5858,3867.3,3865.9,0.7839]
[1733972551272,2.58565,3867.5,3865.9,0.7839]
[1733972551478,2.58565,3867.5,3865.9,2.07725]
[1733972551672,2.58552,3867.7,3866.0,1.29331]
[1733972551903,2.58578,3867.3,3866.1,0.207721]
[1733972552109,0.7619,3867.8,3865.9,0.7839]
[1733972552414,0.25,3869.1,3866.9,1.29302]
[1733972552415,2.58492,3868.6,3866.9,1.29302]
[1733972552584,2.58492,3868.6,3867.0,0.7839]
[1733972552993,0.7619,3868.8,3867.1,1.29295]
[1733972553213,0.7619,3868.8,3867.1,0.02585804]
[1733972553354,2.58512,3868.3,3867.0,0.7839]
[1733972553563,0.7619,3868.8,3867.0,0.7839]
[1733972553756,0.334662,3868.7,3867.2,1.29292]
[1733972553983,2.919512,3868.7,3867.2,1.29292]
[1733972554190,2.58491,3868.6,3867.1,0.207695]
[1733972554814,0.334662,3868.7,3867.1,0.207695]
[1733972555114,0.334662,3868.7,3867.0,0.80568894]
[1733972555115,2.58476,3868.9,3867.5,0.7839]
[1733972555352,2.58479,3868.8,3867.5,0.7839]
[1733972555526,6.59088604,3869.1,3867.5,0.7839]
[1733972555716,2.58526,3868.1,3867.5,0.7839]
[1733972555885,6.59088604,3869.1,3867.5,0.7839]
[1733972556082,2.58514,3868.3,3867.5,0.7839]
[1733972556401,2.58529,3868.1,3867.1,0.7839]
[1733972556561,2.58531,3868.0,3867.1,0.7839]
[1733972556758,2.58495,3868.6,3867.1,0.7839]
[1733972557259,2.58511,3868.3,3867.1,0.7839]
[1733972557498,2.58518,3868.2,3867.1,0.7839]
[1733972558065,2.58528,3868.1,3867.1,0.7839]
[1733972558493,2.58558,3867.6,3867.1,0.7839]
[1733972558808,2.58571,3867.4,3867.0,0.02178894]
[1733972558962,2.58578,3867.3,3867.0,0.02178894]
[1733972559165,4.26483404,3868.1,3867.0,0.02178894]
[1733972559497,2.58438,3869.4,3867.3,0.7839]
[1733972559647,2.58427,3869.6,3868.1,1.29261]
[1733972559847,0.7619,3869.9,3868.2,0.7839]
[1733972560129,2.58395,3870.1,3868.3,0.7839]
[1733972560317,2.58351,3870.7,3869.2,0.7839]
[1733972560525,1.034005,3872.6,3868.2,1.29258]
[1733972560526,0.7619,3871.7,3869.4,1.29219]
[1733972560835,1.034005,3872.6,3870.3,1.29187]
[1733972560836,2.58267,3872.0,3870.3,1.29187]
[1733972561041,4.76820604,3872.4,3870.4,0.7839]
[1733972561175,2.58262,3872.1,3870.4,0.80973514]
[1733972561380,0.25,3873.4,3870.6,0.7839]
[1733972561381,4.00630604,3873.4,3870.6,0.7839]
[1733972561575,2.58226,3872.6,3871.0,1.29164]
[1733972561791,2.58237,3872.4,3870.9,0.7839]
[1733972562004,2.58294,3871.6,3870.9,0.7839]
[1733972562216,4.00630604,3872.4,3870.9,0.7839]
[1733972562531,2.58351,3870.7,3869.6,0.7839]
[1733972562832,4.00630604,3871.4,3869.6,0.7839]
[1733972563140,0.7619,3870.8,3868.6,0.7839]
[1733972563425,2.58452,3869.2,3868.6,0.7839]
[1733972563583,4.00630604,3870.4,3868.6,0.7839]
[1733972563876,0.7619,3870.8,3868.6,0.7839]
[1733972564075,0.7619,3870.8,3868.7,1.29241]
[1733972564076,2.58379,3870.3,3868.7,1.29241]
[1733972564272,2.5839,3870.2,3868.6,0.7839]
[1733972564728,2.58392,3870.1,3868.6,0.7839]
[1733972564873,2.58393,3870.1,3868.6,0.7839]
[1733972565482,2.58399,3870.0,3868.6,0.7839]
[1733972565682,2.842389,3870.0,3868.6,0.7839]
[1733972566684,0.258399,3870.0,3868.6,0.7839]
[1733972566998,2.58394,3870.1,3868.6,0.7839]
[1733972567743,2.58357,3870.6,3868.6,0.7839]
[1733972568027,2.58401,3870.0,3868.6,0.7839]
[1733972568184,2.58406,3869.9,3868.6,0.7839]
[1733972568396,2.58365,3870.5,3868.6,0.7839]
[1733972568397,3.0,3870.3,3868.6,0.7839]
[1733972568596,0.63223426,3870.2,3868.6,0.7839]
[1733972568796,0.63223426,3870.2,3867.3,1.53351847]
[1733972568797,3.0,3870.0,3868.1,0.7839]
[1733972568996,2.58391,3870.1,3868.1,0.7839]
[1733972568997,5.58404,3869.9,3869.8,8.94e-06]
[1733972569241,9.59034604,3869.9,3869.8,8.94e-06]
[1733972569596,2.58467,3869.0,3868.1,0.7839]
[1733972569799,2.58473,3868.9,3868.1,0.7839]
[1733972570298,4.00630604,3871.5,3868.2,4.89261403]
[1733972570523,0.5,3872.3,3868.2,4.89261403]
[1733972570524,4.00630604,3872.0,3869.4,0.7719]
[1733972570742,2.58361,3870.6,3869.4,0.7719]
[1733972571360,2.58349,3870.8,3869.4,0.7719]
[1733972571639,3.0,3871.0,3869.4,0.7719]
[1733972571840,2.58373,3870.4,3869.4,0.7719]
[1733972572072,2.58393,3870.1,3869.4,0.7719]
[1733972572239,4.00630604,3871.0,3869.4,0.7719]
[1733972572413,2.58426,3869.6,3868.3,0.7946]
[1733972572609,0.8055,3870.3,3868.3,0.7946]
[1733972572820,2.58384,3870.2,3868.3,0.7946]
[1733972573023,0.338934,3870.1,3868.3,0.7946]
[1733972573242,3.338934,3870.1,3868.3,0.7946]
[1733972573437,2.58411,3869.8,3868.3,0.7946]
[1733972573639,3.338934,3870.1,3868.3,0.7946]
[1733972573640,2.58422,3869.7,3868.3,0.7946]
[1733972574002,2.58422,3869.7,3868.4,0.86166652]
[1733972574203,2.58422,3869.7,3868.3,0.7946]
[1733972574434,2.58422,3869.7,3868.3,1.003317]
[1733972574606,2.58427,3869.6,3868.3,1.003317]
[1733972574820,7.00630604,3870.5,3868.3,1.003317]
[1733972574821,0.8055,3870.9,3869.0,0.7946]
[1733972575024,2.58361,3870.6,3869.1,1.29228]
[1733972575222,2.58321,3871.2,3869.3,0.7946]
[1733972575422,2.58298,3871.5,3869.5,0.7946]
[1733972575752,0.8055,3872.0,3869.9,1.29199]
[1733972575977,2.58349,3870.8,3869.8,0.7946]
[1733972576452,2.58311,3871.3,3869.8,0.7946]
[1733972576453,2.58372,3870.4,3869.8,0.7946]
[1733972576834,2.58385,3870.2,3869.8,0.7946]
[1733972577143,2.58392,3870.1,3869.8,0.7946]
[1733972577360,0.258385,3870.2,3868.8,0.7946]
[1733972577522,2.58391,3870.1,3868.8,0.7946]
[1733972577720,2.58359,3870.6,3868.8,0.7946]
[1733972577721,3.0,3870.5,3868.8,0.7946]
[1733972577965,2.58445,3869.3,3868.8,0.7946]
[1733972578113,3.0,3870.5,3868.8,0.7946]
[1733972578313,2.5843,3869.6,3868.8,0.7946]
[1733972578509,0.597386,3869.6,3868.8,0.7946]
[1733972578709,2.58458,3869.1,3868.8,0.7946]
[1733972579055,2.58442,3869.4,3868.8,0.7946]
[1733972579215,2.5842,3869.7,3868.8,0.7946]
[1733972579764,3.0,3870.4,3868.8,0.7946]
[1733972579923,2.58427,3869.6,3868.8,0.7946]